fUST/lending_fUST_20240415
["ID","MTS","AMOUNT","RATE_DAILY","PERIOD"]
[322618476,1713125562521,6472.39711407,0.00038353,4]
[322618477,1713125567980,154.81422293,0.00019,2]
[322618478,1713125589919,155.03085453,0.00019,2]
[322618479,1713125605909,154.92253873,0.00019,2]
[322618480,1713125606184,284.81223636,0.00019,2]
[322618481,1713125609253,154.81422293,0.00019,2]
[322618482,1713125610720,691.63145155,0.00019,2]
[322618483,1713125610959,154.81422293,0.00019,2]
[322618484,1713125611029,19156.23345846,0.00019,2]
[322618485,1713125614874,154.81422293,0.00019,2]
[322618486,1713125615101,220.66364515,0.00019,2]
[322618487,1713125615649,154.81422293,0.00019,2]
[322618488,1713125616029,154.81422293,0.00019,2]
[322618489,1713125617055,2939.7704734,0.00019,2]
[322618490,1713125617087,13124.22925291,0.00019,2]
[322618491,1713125620185,383.22993004,0.00019,2]
[322618492,1713125621907,236.29204197,0.00019,2]
[322618493,1713125622951,234.61038625,0.00019,2]
[322618494,1713125625259,154.81422293,0.00019,2]
[322618495,1713125626718,691.63145155,0.00019,2]
[322618496,1713125629041,19156.23345846,0.00019,2]
[322618497,1713125630393,155.21440017,0.00019,2]
[322618498,1713125631058,154.81422293,0.00019,2]
[322618499,1713125634017,276.17371184,0.00019,2]
[322618500,1713125634836,154.81422293,0.00019,2]
[322618501,1713125635088,220.66364515,0.00019,2]
[322618502,1713125639052,16063.99972631,0.00019,2]
[322618503,1713125639627,154.81422293,0.00019,2]
[322618504,1713125641265,191.20728828,0.00019,2]
[322618505,1713125642172,284.67704858,0.00019,2]
[322618506,1713125643516,385.30778688,0.00019,2]
[322618507,1713125647067,154.96456307,0.00019,2]
[322618508,1713125648709,691.63145155,0.00019,2]
[322618509,1713125649034,19156.23345846,0.00019,2]
[322618510,1713125650848,154.81422293,0.00019,2]
[322618511,1713125652712,154.81422293,0.00019,2]
[322618512,1713125653633,198.71290028,0.00019,2]
[322618513,1713125657102,220.66364515,0.00019,2]
[322618514,1713125659041,16063.99972631,0.00019,2]
[322618515,1713125659506,384.93988964,0.00019,2]
[322618516,1713125664722,691.63145155,0.00019,2]
[322618517,1713125667039,19156.23345846,0.00019,2]
[322618518,1713125668556,154.81422293,0.00019,2]
[322618519,1713125670963,154.81422293,0.00019,2]
[322618520,1713125675106,220.66364515,0.00019,2]
[322618521,1713125680031,16063.99972631,0.00019,2]
[322618522,1713125682715,691.63145155,0.00019,2]
[322618523,1713125683056,19156.23345846,0.00019,2]
[322618524,1713125684559,154.81422293,0.00019,2]
[322618525,1713125686852,154.81422293,0.00019,2]
[322618526,1713125695127,220.66364515,0.00019,2]
[322618527,1713125698730,446.09412813,0.00019,2]
[322618528,1713125702558,154.81422293,0.00019,2]
[322618529,1713125703036,19156.23345846,0.00019,2]
[322618530,1713125703074,16063.99972631,0.00019,2]
[322618531,1713125710852,154.81422293,0.00019,2]
[322618532,1713125713236,220.66364515,0.00019,2]
[322618533,1713125719050,9250.25912363,0.00019,2]
[322618534,1713125722636,154.81422293,0.00019,2]
[322618535,1713125725033,19156.23345846,0.00019,2]
[322618536,1713125726854,154.81422293,0.00019,2]
[322618537,1713125731115,374.96624953,0.00019,2]
[322618538,1713125731524,385.30778688,0.00019,2]
[322618539,1713125740567,161.33664326,0.00019,2]
[322618540,1713125742880,263.85376305,0.00019,2]
[322618541,1713125743045,15487.64778148,0.00019,2]
[322618542,1713125743068,3668.58567698,0.00019,2]
[322618543,1713125753534,385.30778688,0.00019,2]
[322618544,1713125767042,19156.23345846,0.00019,2]
[322618545,1713125767532,384.75594102,0.00019,2]
[322618546,1713125783041,19156.23345846,0.00019,2]
[322618547,1713126350155,-187.62122518,0.00027289,2]
[322618548,1713126350175,-253.44480058,0.00027386,2]
[322618549,1713126448101,-154.81422293,0.00026359,2]
[322618550,1713126448123,-525.35430968,0.00026359,2]
[322618551,1713126448143,-154.81422293,0.00026359,2]
[322618552,1713126448163,-154.81422293,0.0002636,2]
[322618553,1713126448182,-212.293546,0.00026361,2]
[322618554,1713126448201,-1908.62500374,0.00027282,2]
[322618555,1713126453095,-154.81422293,0.00026358,2]
[322618556,1713126453124,-1608.05796807,0.00027282,2]
[322618557,1713126545114,-154.81422293,0.00027178,2]
[322618558,1713126545135,-687.97368772,0.00027179,2]
[322618559,1713126545158,-275.16174658,0.0002718,3]
[322618560,1713126545179,-22771.62604295,0.00027276,2]
[322618561,1713126545199,-3739.92568584,0.00027277,2]
[322618562,1713126545220,-300.0,0.00027277,2]
[322618563,1713126545239,-300.0,0.00027277,2]
[322618564,1713126545259,-1966.28966028,0.00027278,2]
[322618565,1713126545279,-5301.47067529,0.00027278,2]
[322618566,1713126545300,-35600.73333802,0.00027279,2]
[322618567,1713126546137,-10730.57706,0.00027279,2]
[322618568,1713126556103,-12717.4760881,0.00027279,2]
[322618569,1713126556124,-5790.15914979,0.00027279,2]
[322618570,1713126556146,-155.06182665,0.00027281,2]
[322618571,1713126556167,-155.09280806,0.00027281,2]
[322618572,1713126556186,-229.85533838,0.00027281,2]
[322618573,1713126556210,-156.73647188,0.00027281,2]
[322618574,1713126556229,-271.35363368,0.00027281,2]
[322618575,1713126556249,-269.3326566,0.00027281,2]
[322618576,1713126556267,-154.81422293,0.00027282,2]
[322618577,1713126556286,-154.81422293,0.00027282,2]
[322618578,1713126556307,-162.769523,0.00027397,2]
[322618579,1713126556329,-275.16174657,0.00029314,4]
[322618580,1713126556353,-420.0,0.00029481,2]
[322618581,1713126556374,-420.0,0.00030005,2]
[322618582,1713126556396,-275.16174657,0.00031448,5]
[322618583,1713126556415,-480.0,0.00031863,2]
[322618584,1713126556438,-480.0,0.00033005,2]
[322618585,1713126556457,-320.80796744,0.00033506,2]
[322618586,1713126556477,-275.16174657,0.00033582,6]
[322618587,1713126556499,-161.941985,0.0003361,2]
[322618588,1713126556520,-320.80796743,0.00034694,2]
[322618589,1713126568913,164.19113143,0.00027282,2]
[322618590,1713126573081,154.81422293,0.00027282,2]
[322618591,1713126591089,163.07923331,0.00027282,2]
[322618594,1713126618147,482.03447007,0.00025179,2]
[322618595,1713126618340,482.03447007,0.00030179,2]
[322618596,1713126618523,394.82647219,0.00035179,2]
[322618597,1713126618544,87.20799788,0.00035179,2]
[322618613,1713126631710,-182.96331992,0.00035555,2]
[322618614,1713126631719,-1019.41453281,0.00035555,2]
[322618615,1713126631728,-223.087518,0.00035616,120]
[322618616,1713126631737,-275.16174657,0.00035716,7]
[322618617,1713126631747,-320.80796743,0.00035881,2]
[322618618,1713126631756,-162.769523,0.0003653,2]
[322618619,1713126631765,-320.80796743,0.00037069,2]
[322618620,1713126631773,-112.47522391,0.00037072,2]
[322618627,1713126637868,-49.0073362,0.00037072,2]
[322618629,1713126637887,-12.27334789,0.00037072,2]
[322618630,1713126637896,-1115.93902622,0.00037726,2]
[322618632,1713126637905,-275.16174657,0.0003785,8]
[322618634,1713126637914,-187.62122518,0.00038253,2]
[322618636,1713126637924,-724.25892594,0.00038254,2]
[322618638,1713126637933,-320.80796743,0.00038256,2]
[322618640,1713126637942,-2252.07348759,0.00038256,2]
[322618642,1713126637951,-377.59728705,0.00038349,2]
[322618644,1713126637960,-272.07037273,0.00038349,4]
[322618646,1713126637969,-687.31905668,0.00038349,4]
[322618648,1713126637977,-322.75789902,0.00038349,4]
[322618649,1713126637987,-155.06182975,0.00038349,4]
[322618651,1713126637997,-288.45973767,0.00038349,4]
[322618654,1713126638009,-3448.16980323,0.00038349,4]
[322618656,1713126638018,-2267.98951494,0.00038349,4]
[322618658,1713126638026,-59281.39661152,0.00038349,4]
[322618660,1713126638035,-25228.13781077,0.0003835,4]
[322618662,1713126638044,-202.79032534,0.0003835,15]
[322618664,1713126638053,-371.46891486,0.00038351,4]
[322618666,1713126638062,-313.34127834,0.00038351,4]
[322618668,1713126638071,-85730.40432754,0.00038351,2]
[322618670,1713126638079,-13321.89365007,0.00038352,30]
[322618672,1713126638088,-451.27698166,0.00038352,4]
[322618674,1713126638098,-158.62437047,0.00038352,4]
[322618676,1713126638107,-155.18236766,0.00038353,2]
[322618678,1713126638115,-2562.33263355,0.00038353,4]
[322618680,1713126638125,-153.34753345,0.00038353,15]
[322618682,1713126638134,-191.07779836,0.00038353,15]
[322618738,1713126642999,-259.05095369,0.00038353,15]
[322618739,1713126643009,-500.0,0.00038353,15]
[322618740,1713126643018,-495.07509838,0.00038353,15]
[322618741,1713126643027,-500.0,0.00038353,15]
[322618742,1713126643036,-500.0,0.00038353,15]
[322618743,1713126643045,-500.0,0.00038353,15]
[322618744,1713126643054,-624.11366507,0.00038353,15]
[322618745,1713126643063,-500.0,0.00038353,15]
[322618746,1713126643072,-398.22026796,0.00038353,15]
[322618747,1713126643081,-500.0,0.00038353,15]
[322618748,1713126643090,-351.37925925,0.00038353,15]
[322618749,1713126643099,-192.9123223,0.00038353,15]
[322618750,1713126643108,-155.88,0.00038353,2]
[322618751,1713126643117,-3584.95296381,0.00038354,5]
[322618752,1713126643126,-500.21886874,0.00038354,4]
[322618753,1713126643135,-1308.46081651,0.00038354,4]
[322618754,1713126643144,-601.81614276,0.00038354,4]
[322618755,1713126643153,-242.92908465,0.00038354,4]
[322618756,1713126643162,-874.98344823,0.00038354,4]
[322618757,1713126643171,-282.52694059,0.00038354,4]
[322618758,1713126643181,-1756.41115898,0.00038354,4]
[322618759,1713126643190,-154.93802479,0.00038354,4]
[322618760,1713126643200,-538.59791891,0.00038354,4]
[322618761,1713126643210,-167.21553136,0.00038354,4]
[322618762,1713126643219,-277.24658734,0.00038354,4]
[322618763,1713126643228,-875.47790871,0.00038354,4]
[322618764,1713126643237,-181.18098361,0.00038354,4]
[322618765,1713126643246,-1486.82464434,0.00038354,4]
[322618766,1713126643255,-155.22670511,0.00038354,4]
[322618767,1713126643266,-2122.71055525,0.00038354,4]
[322618768,1713126643275,-154.95351395,0.00038354,4]
[322618769,1713126643284,-154.95351395,0.00038354,4]
[322618770,1713126643294,-1494.36779976,0.00038354,4]
[322618771,1713126643303,-470.34138776,0.00038354,4]
[322618772,1713126643312,-2094.57281327,0.00038354,4]
[322618773,1713126643321,-467.23792428,0.00038354,4]
[322618774,1713126643331,-563.18202203,0.00038354,4]
[322618775,1713126643340,-326.62746288,0.00038354,4]
[322618776,1713126643351,-154.95351395,0.00038354,4]
[322618777,1713126643364,-361.13014743,0.00038354,4]
[322618778,1713126643373,-3293.28998897,0.00038354,4]
[322618779,1713126643382,-473.53133438,0.00038354,4]
[322618780,1713126643391,-1671.38044396,0.00038354,4]
[322618781,1713126643401,-303.8718466,0.00038354,4]
[322618782,1713126643410,-208.48934142,0.00038354,4]
[322618783,1713126643419,-2937.70369238,0.00038354,4]
[322618784,1713126643428,-155.23627875,0.00038354,4]
[322618785,1713126643437,-245.79413479,0.00038354,4]
[322618786,1713126643446,-5570.46935089,0.00038354,4]
[322618787,1713126643455,-194.24088925,0.00038354,4]
[322618788,1713126643465,-313.75026018,0.00038354,4]
[322618789,1713126643474,-157.12422798,0.00038354,4]
[322618790,1713126643483,-154.9690062,0.00038354,4]
[322618791,1713126643492,-155.39896969,0.00038354,4]
[322618792,1713126643501,-244.20130508,0.00038354,4]
[322618793,1713126643511,-1742.16937858,0.00038354,4]
[322618794,1713126643521,-154.95351395,0.00038354,4]
[322618795,1713126643531,-155.27250746,0.00038354,4]
[322618796,1713126643540,-199.58809599,0.00038354,4]
[322618797,1713126643550,-218.42945926,0.00038354,4]
[322618798,1713126643559,-500.0,0.00038354,2]
[322618799,1713126643568,-276.16430272,0.00038354,4]
[322618800,1713126643578,-201.28462049,0.00038354,4]
[322618801,1713126643587,-158.56024246,0.00038354,4]
[322618802,1713126643596,-408.01951387,0.00038354,4]
[322618803,1713126643605,-155.45505525,0.00038354,4]
[322618804,1713126643615,-156.09677976,0.00038354,5]
[322618806,1713126643624,-268.82867148,0.00038354,4]
[322618808,1713126643632,-260.30786346,0.00038354,4]
[322618809,1713126643642,-155.5133661,0.00038354,4]
[322618810,1713126643652,-155.15687903,0.00038354,4]
[322618811,1713126643661,-207.39373908,0.00038354,4]
[322618812,1713126643670,-155.58841161,0.00038354,4]
[322618813,1713126643680,-155.48726397,0.00038354,4]
[322618815,1713126643690,-185.70840416,0.00038354,4]
[322618817,1713126643699,-151.0,0.00038354,2]
[322618818,1713126643709,-151.0,0.00038354,2]
[322618819,1713126643717,-151.0,0.00038354,2]
[322618820,1713126643726,-151.0,0.00038354,2]
[322618821,1713126643735,-151.0,0.00038354,2]
[322618822,1713126643744,-151.0,0.00038354,2]
[322618824,1713126643753,-151.0,0.00038354,2]
[322618825,1713126643765,-151.0,0.00038354,2]
[322618826,1713126643774,-151.0,0.00038354,2]
[322618827,1713126643783,-151.0,0.00038354,2]
[322618828,1713126643794,-151.0,0.00038354,2]
[322618829,1713126643803,-151.0,0.00038354,2]
[322618830,1713126643812,-151.0,0.00038354,2]
[322618831,1713126643820,-151.0,0.00038354,2]
[322618832,1713126643829,-151.0,0.00038354,2]
[322618833,1713126643838,-151.0,0.00038354,2]
[322618834,1713126643847,-151.0,0.00038354,2]
[322618835,1713126643857,-151.0,0.00038354,2]
[322618836,1713126643867,-984.481701,0.00038354,2]
[322618837,1713126643876,-984.481701,0.00038354,2]
[322618838,1713126643885,-984.481701,0.00038354,2]
[322618839,1713126643894,-984.481701,0.00038354,2]
[322618840,1713126643903,-984.481701,0.00038354,2]
[322618841,1713126643912,-984.481701,0.00038354,2]
[322618842,1713126643921,-984.481701,0.00038354,2]
[322618843,1713126643930,-984.481701,0.00038354,2]
[322618844,1713126643939,-984.481701,0.00038354,2]
[322618845,1713126643950,-984.481701,0.00038354,2]
[322618846,1713126643960,-151.0,0.00038354,2]
[322618847,1713126643969,-196.414137,0.00038354,2]
[322618848,1713126643979,-151.0,0.00038354,2]
[322618849,1713126643989,-151.0,0.00038354,2]
[322618850,1713126643998,-255.847072,0.00038354,2]
[322618851,1713126644009,-757.858658,0.00038354,2]
[322618852,1713126644018,-757.858658,0.00038354,2]
[322618853,1713126644027,-757.858658,0.00038354,2]
[322618854,1713126644036,-757.858658,0.00038354,2]
[322618855,1713126644045,-757.858658,0.00038354,2]
[322618856,1713126644054,-757.858658,0.00038354,2]
[322618857,1713126644063,-757.858658,0.00038354,2]
[322618858,1713126644072,-757.858658,0.00038354,2]
[322618859,1713126644081,-757.858658,0.00038354,2]
[322618860,1713126644090,-757.858658,0.00038354,2]
[322618861,1713126644098,-757.858658,0.00038354,2]
[322618862,1713126644107,-757.858658,0.00038354,2]
[322618863,1713126644117,-757.858658,0.00038354,2]
[322618864,1713126644126,-757.858658,0.00038354,2]
[322618865,1713126644135,-757.858658,0.00038354,2]
[322618866,1713126644144,-757.858658,0.00038354,2]
[322618867,1713126644153,-151.0,0.00038354,2]
[322618868,1713126644162,-151.0,0.00038354,2]
[322618869,1713126644171,-151.0,0.00038354,2]
[322618870,1713126644180,-151.0,0.00038354,2]
[322618871,1713126644188,-267.92912,0.00038354,2]
[322618872,1713126644197,-151.0,0.00038354,2]
[322618873,1713126644206,-151.0,0.00038354,2]
[322618874,1713126644215,-151.0,0.00038354,2]
[322618875,1713126644224,-151.0,0.00038354,2]
[322618876,1713126644233,-151.0,0.00038354,2]
[322618877,1713126644242,-151.0,0.00038354,2]
[322618878,1713126644250,-151.0,0.00038354,2]
[322618879,1713126644260,-151.0,0.00038354,2]
[322618880,1713126644269,-151.0,0.00038354,2]
[322618881,1713126644278,-151.0,0.00038354,2]
[322618882,1713126644287,-151.0,0.00038354,2]
[322618883,1713126644296,-151.0,0.00038354,2]
[322618884,1713126644305,-151.0,0.00038354,2]
[322618885,1713126644313,-151.0,0.00038354,2]
[322618886,1713126644322,-151.0,0.00038354,2]
[322618887,1713126644331,-291.111175,0.00038354,2]
[322618888,1713126644340,-604.518537,0.00038354,2]
[322618889,1713126644350,-604.518537,0.00038354,2]
[322618890,1713126644363,-604.518537,0.00038354,2]
[322618891,1713126644372,-604.518537,0.00038354,2]
[322618892,1713126644381,-604.518537,0.00038354,2]
[322618893,1713126644390,-604.518537,0.00038354,2]
[322618894,1713126644399,-604.518537,0.00038354,2]
[322618895,1713126644408,-604.518537,0.00038354,2]
[322618896,1713126644417,-604.518537,0.00038354,2]
[322618897,1713126644427,-604.518537,0.00038354,2]
[322618898,1713126644436,-604.518537,0.00038354,2]
[322618899,1713126644446,-604.518537,0.00038354,2]
[322618900,1713126644454,-604.518537,0.00038354,2]
[322618901,1713126644463,-604.518537,0.00038354,2]
[322618902,1713126644473,-604.518537,0.00038354,2]
[322618903,1713126644482,-604.518537,0.00038354,2]
[322618904,1713126644490,-151.0,0.00038354,2]
[322618905,1713126644499,-162.829545,0.00038354,2]
[322618906,1713126644509,-151.0,0.00038354,2]
[322618907,1713126644518,-151.0,0.00038354,2]
[322618908,1713126644527,-151.0,0.00038354,2]
[322618909,1713126644536,-151.0,0.00038354,2]
[322618910,1713126644545,-151.0,0.00038354,2]
[322618911,1713126644555,-151.0,0.00038354,2]
[322618912,1713126644563,-151.0,0.00038354,2]
[322618913,1713126644573,-151.0,0.00038354,2]
[322618914,1713126644583,-151.0,0.00038354,2]
[322618915,1713126644592,-151.0,0.00038354,2]
[322618916,1713126644601,-151.0,0.00038354,2]
[322618917,1713126644611,-151.0,0.00038354,2]
[322618918,1713126644619,-151.0,0.00038354,2]
[322618919,1713126644628,-151.0,0.00038354,2]
[322618920,1713126644637,-151.0,0.00038354,2]
[322618921,1713126644646,-151.0,0.00038354,2]
[322618922,1713126644655,-151.0,0.00038354,2]
[322618923,1713126644664,-151.0,0.00038354,2]
[322618924,1713126644673,-151.0,0.00038354,2]
[322618925,1713126644682,-151.0,0.00038354,2]
[322618926,1713126644691,-151.0,0.00038354,2]
[322618927,1713126644700,-155.664008,0.00038354,2]
[322618928,1713126644709,-155.664008,0.00038354,2]
[322618929,1713126644718,-155.664008,0.00038354,2]
[322618930,1713126644727,-155.664008,0.00038354,2]
[322618931,1713126644735,-155.664008,0.00038354,2]
[322618932,1713126644745,-155.664008,0.00038354,2]
[322618933,1713126644754,-155.664008,0.00038354,2]
[322618934,1713126644766,-155.664008,0.00038354,2]
[322618935,1713126644775,-151.0,0.00038354,2]
[322618936,1713126644784,-155.664008,0.00038354,2]
[322618937,1713126644794,-151.0,0.00038354,2]
[322618938,1713126644803,-151.0,0.00038354,2]
[322618939,1713126644812,-155.664008,0.00038354,2]
[322618940,1713126644821,-151.0,0.00038354,2]
[322618941,1713126644830,-155.664008,0.00038354,2]
[322618942,1713126644839,-151.0,0.00038354,2]
[322618943,1713126644849,-155.664008,0.00038354,2]
[322618944,1713126644859,-155.664008,0.00038354,2]
[322618945,1713126644869,-155.664008,0.00038354,2]
[322618946,1713126644879,-155.664008,0.00038354,2]
[322618947,1713126644888,-155.664008,0.00038354,2]
[322618948,1713126644896,-155.664008,0.00038354,2]
[322618949,1713126644905,-155.664008,0.00038354,2]
[322618950,1713126644915,-151.0,0.00038354,2]
[322618951,1713126644924,-151.0,0.00038354,2]
[322618952,1713126644933,-151.0,0.00038354,2]
[322618953,1713126644942,-247.692946,0.00038354,2]
[322618954,1713126644951,-6454.706623,0.00038354,2]
[322618955,1713126644960,-6454.706623,0.00038354,2]
[322618956,1713126644969,-6454.706623,0.00038354,2]
[322618957,1713126644978,-6454.706623,0.00038354,2]
[322618958,1713126644987,-6454.706623,0.00038354,2]
[322618959,1713126644996,-6454.706623,0.00038354,2]
[322618960,1713126645005,-6454.706623,0.00038354,2]
[322618961,1713126645017,-6454.706623,0.00038354,2]
[322618962,1713126645026,-3639.74052648,0.00038354,2]
[322618980,1713126662869,154.84515485,0.00035179,4]
[322618981,1713126682163,157.90998344,0.00035179,4]
[322618982,1713126685200,1204.78466717,0.00035179,4]
[322618983,1713126685222,2160.53433078,0.00035179,4]
[322618984,1713126696947,155.18236766,0.00035179,2]
[322618985,1713126698138,154.90705577,0.00035179,4]
[322618986,1713126706431,2562.33263355,0.00035179,4]
[322618987,1713126747897,185.094133,0.00027397,2]
[322618989,1713127615167,-154.81422293,0.0002619,2]
[322618990,1713127615189,-158.71046401,0.0002619,2]
[322618991,1713127615209,-226.83435533,0.0002619,2]
[322618992,1713127630123,-156.74161626,0.00026188,2]
[322618993,1713127630143,-272.19257405,0.00026188,2]
[322618994,1713127630162,-408.16438819,0.00026189,2]
[322618995,1713127630332,-154.81422293,0.00026189,2]
[322618996,1713127630352,-687.97368772,0.00026189,2]
[322618997,1713127630371,-336.6401083,0.0002619,2]
[322618998,1713127630391,-154.81422293,0.0002619,2]
[322618999,1713127630411,-236.25199096,0.0002619,2]
[322619000,1713127630431,-9554.70298201,0.0002619,2]
[322619001,1713127630453,-154.81422293,0.00026191,2]
[322619002,1713127630476,-1966.28966028,0.00026191,2]
[322619003,1713127630497,-300.0,0.00026191,2]
[322619004,1713127630519,-300.0,0.00026191,2]
[322619005,1713127630540,-154.81422293,0.00026192,2]
[322619006,1713127630560,-304.17480318,0.00026192,2]
[322619007,1713127630588,-20354.87301892,0.00026192,2]
[322619008,1713127639117,-154.81422293,0.00026187,2]
[322619009,1713127639137,-326.777732,0.00026187,2]
[322619010,1713127639158,-185.83605706,0.00026188,2]
[322619011,1713127639178,-240.56859981,0.00026188,2]
[322619012,1713127648136,-5549.59054998,0.00026188,2]
[322619013,1713127648156,-3739.92568584,0.00026188,2]
[322619014,1713127648176,-154.98440874,0.0002619,2]
[322619015,1713127648195,-548.20425632,0.0002619,2]
[322619016,1713127648215,-304.17480318,0.0002619,2]
[322619017,1713127648235,-155.30996186,0.0002619,2]
[322619018,1713127648254,-184.73968369,0.0002619,2]
[322619019,1713127648274,-93.64771039,0.0002619,2]
[322619020,1713127650124,-62.44395464,0.0002619,2]
[322619021,1713127650144,-108.17598644,0.0002619,2]
[322619022,1713127653107,-47.20932983,0.0002619,2]
[322619023,1713127653128,-271.67029147,0.0002619,2]
[322619024,1713127653149,-156.74161626,0.0002619,2]
[322619025,1713127653170,-121.98001004,0.0002619,2]
[322619026,1713127750274,-158.71046401,0.00024914,2]
[322619027,1713127750294,-173.755908,0.00024915,2]
[322619028,1713127750315,-358.35918484,0.00026088,3]
[322619029,1713127750335,-185.83605706,0.00026185,2]
[322619030,1713127750355,-236.25199096,0.00026186,2]
[322619031,1713127750375,-563.47446363,0.00026186,2]
[322619032,1713127750395,-300.0,0.00026188,2]
[322619033,1713127750417,-300.0,0.00026188,2]
[322619034,1713127750437,-22771.62604295,0.00026189,2]
[322619035,1713127750457,-59048.78648612,0.00026189,2]
[322619036,1713127750477,-687.6463722,0.0002619,2]
[322619037,1713127750497,-438.89850707,0.0002619,2]
[322619038,1713127750516,-9288.33633739,0.0002619,2]
[322619039,1713127750536,-154.92250472,0.0002619,2]
[322619040,1713127750557,-409.51827528,0.0002619,2]
[322619041,1713127750576,-3448.16980323,0.0002619,2]
[322619042,1713127750595,-156.52868499,0.0002619,2]
[322619043,1713127750614,-2265.24618342,0.0002619,2]
[322619044,1713127750634,-154.8915759,0.0002619,2]
[322619045,1713127750654,-1965.39904468,0.00026191,2]
[322619046,1713127750675,-4198.40257844,0.00026192,2]
[322619047,1713127750694,-387.439093,0.00026199,2]
[322619048,1713127750714,-500.0,0.00027172,2]
[322619049,1713127750734,-500.0,0.00027172,2]
[322619050,1713127750753,-500.0,0.00027172,2]
[322619051,1713127750774,-500.0,0.00027172,2]
[322619052,1713127750792,-504.49673086,0.00027172,2]
[322619053,1713127750811,-500.0,0.00027172,2]
[322619054,1713127750831,-643.19529881,0.00027172,2]
[322619055,1713127750851,-764.05141969,0.00027182,2]
[322619056,1713127750870,-254.85350466,0.00027386,2]
[322619057,1713127750889,-156.61541753,0.00027386,2]
[322619058,1713127750914,-156.65916471,0.00027386,2]
[322619059,1713127750934,-237.05818765,0.00027386,2]
[322619060,1713127750955,-5876.51971193,0.00027397,2]
[322619061,1713127750975,-160.1903524,0.00027397,2]
[322619062,1713127750995,-1000.0,0.00027397,2]
[322619063,1713127751016,-179.032836,0.00027397,2]
[322619064,1713127751037,-157.7796883,0.00028108,2]
[322619065,1713127751059,-420.0,0.00028335,2]
[322619066,1713127751080,-358.35918479,0.00028384,4]
[322619067,1713127751102,-420.0,0.00028806,2]
[322619068,1713127751123,-764.05141968,0.00029951,2]
[322619069,1713127751143,-400.0,0.00030659,2]
[322619070,1713127751170,-358.35918479,0.00030679,5]
[322619071,1713127751191,-587.0,0.00031687,2]
[322619072,1713127751210,-154.90705577,0.0003189,7]
[322619073,1713127751230,-764.05141968,0.00032719,2]
[322619074,1713127751250,-358.35918479,0.00032975,6]
[322619075,1713127751270,-465.26500893,0.00034,4]
[322619076,1713127751290,-373.0,0.00034856,2]
[322619077,1713127751309,-10230.57706,0.00035,4]
[322619078,1713127751328,-358.35918479,0.0003527,7]
[322619079,1713127751347,-764.05141968,0.00035488,2]
[322619080,1713127764195,465.26500893,0.00034,4]
[322619081,1713127823445,1394.1559162,0.00025297,2]
[322619082,1713127823471,280.31932902,0.00025297,2]
[322619083,1713127823620,934.54129642,0.00030297,2]
[322619084,1713127823639,739.9339488,0.00030297,2]
[322619146,1713127832016,-1674.47524522,0.00035297,2]
[322619147,1713127832025,-193.30051232,0.00035615,4]
[322619149,1713127832034,-840.7649824,0.00035974,2]
[322619150,1713127832043,-362.36196722,0.00036427,4]
[322619151,1713127832053,-925.5318754,0.00036434,4]
[322619152,1713127832062,-313.679708,0.00036775,120]
[322619153,1713127832071,-32.74907035,0.00036868,2]
[322619154,1713127832083,-876.58072311,0.00036868,2]
[322619204,1713127838010,-90.67020654,0.00036868,2]
[322619205,1713127838020,-358.35918479,0.00037566,8]
[322619206,1713127838029,-631.03824912,0.00037773,2]
[322619207,1713127838039,-11372.08376129,0.00037968,4]
[322619208,1713127838048,-1000.0,0.00038089,2]
[322619209,1713127838058,-1000.0,0.00038126,2]
[322619210,1713127838067,-1000.0,0.00038222,2]
[322619211,1713127838076,-303.69593178,0.00038238,2]
[322619212,1713127838086,-1000.0,0.00038249,2]
[322619213,1713127838095,-2000.0,0.0003825,2]
[322619214,1713127838104,-1000.0,0.00038252,2]